Workbook

Sheet 10-12월
B2: - 관련근거 「지방자치단체를 당사자로 하는 계약에 관한 법률 시행령」 • 제31조(수의계약 내역의 공개) 지방자치단체장 및 계약담당자는 수의계약을 체결한 경우 계약 내용을 공개하여야 한다. 이 경우 공개 사항 및 기간 등에 관하여는 제124조를 준용한다. • 제124조(계약정보의 공개) 1항 지방자치단체의 장 또는 계약담당자는 법 제43조에 따라 다음 각 호의 사항을 해당 지방자치단체의 인터넷 홈페이지에 공개하여야 한다. 「지방자치단체 입찰 및 계약집행기준[시행2024.4.1.][행정안전부 예규 제282호, 2024.3.8., 전부개정]」 제5장 제8절 수의계약 내역 공개에 따른 아래 서식으로 공개
B4: 대전광역시사회서비스원 계약 현황(2024년 10월)
B6: □ 유형별 계약 현황 | I6: (단위 : 원)
B7: 유 형 | D7: 건 수 | G7: 금 액 | H7: 금액 비중 | I7: 비고
B8: 물 품 | D8: 0 | G8: 0 | H8: 0
B9: 용 역 | D9: 0 | G9: 0 | H9: 0
B10: 공 사 | D10: 2 | G10: =H17+H27 -> 24390000 | H10: =G10/G11 -> 1
B11: 합 계 | D11: =SUM(D8:F10) -> 2 | G11: =SUM(G8:G10) -> 24390000 | H11: =SUM(H8:H10) -> 1
B13: □ 공사
B14: 사 업 명 | C14: 도안아이파크 다함께돌봄센터 리모델링 공사
B15: 계 약 개 요 | C15: 계약일자 | D15: 계약기간 | G15: 예정가격(원) | H15: 계약금액(원) | I15: 계약률(%) (B/A)
G16: (추정금액)(A) | H16: (B)
C17: 2024-10-14 | D17: 2024-10-14 | E17: ~ | F17: 2024-10-31 | G17: 6900000 | H17: 6900000 | I17: 1
B18: 계약상대자 | C18: 업 체 명 | D18: 대표자 | G18: 주 소
C19: ㈜가현 | D19: 이** | G19: 대전광역시 대덕구 오정로64번길 10
B20: 수의계약사유 | C20: 지방계약법 시행령 제25조제1항제5호가목 및 동령 제30조제1항제2호
B21: 납 품 장 소 | C21: 대전광역시
B22: 기 타
B24: 사 업 명 | C24: 대전광역시사회서비스원 소속 어린이집 방수공사
B25: 계 약 개 요 | C25: 계약일자 | D25: 계약기간 | G25: 예정가격(원) | H25: 계약금액(원) | I25: 계약률(%) (B/A)
G26: (추정금액)(A) | H26: (B)
C27: 2024-10-16 | D27: 2024-10-16 | E27: ~ | F27: 2024-11-29 | G27: 17490000 | H27: 17490000 | I27: 1
B28: 계약상대자 | C28: 업 체 명 | D28: 대표자 | G28: 주 소
C29: ㈜제일도장 | D29: 윤** | G29: 대전광역시 유성구 교촌로36
B30: 수의계약사유 | C30: 지방계약법 시행령 제25조제1항제5호가목 및 동령 제30조제1항제2호
B31: 납 품 장 소 | C31: 대전광역시
B32: 기 타
B35: 대전광역시사회서비스원 계약 현황(2024년 11월)
B37: □ 유형별 계약 현황 | I37: (단위 : 원)
B38: 유 형 | D38: 건 수 | G38: 금 액 | H38: 금액 비중 | I38: 비고
B39: 물 품 | D39: 3 | G39: =H48+H58+H68 -> 25970000 | H39: =G39/G42 -> 0.4231709304
B40: 용 역 | D40: 5 | G40: =H79+H89+H121 -> 35400000 | H40: =G40/G42 -> 0.5768290696 | I40: 변경계약2건 포함
B41: 공 사 | D41: 0 | G41: 0 | H41: 0
B42: 합 계 | D42: 3 | G42: =SUM(G39:G41) -> 61370000 | H42: =SUM(H39:H41) -> 1
B44: □ 물품
B45: 사 업 명 | C45: 2024 복지만두레 홍보 물품 제작
B46: 계 약 개 요 | C46: 계약일자 | D46: 계약기간 | G46: 예정가격(원) | H46: 계약금액(원) | I46: 계약률(%) (B/A)
G47: (추정금액)(A) | H47: (B)
C48: 2024-11-07 | D48: 2024-11-07 | E48: ~ | F48: 2024-11-25 | G48: 12900000 | H48: 12900000 | I48: 1
B49: 계약상대자 | C49: 업 체 명 | D49: 대표자 | G49: 주 소
C50: 판촉가든 | D50: 김** | G50: 인천광역시 부평구 장제로45
B51: 수의계약사유 | C51: 지방계약법 시행령 제25조제1항제5호나목 및 동령 제30조제1항제2호
B52: 납 품 장 소 | C52: 대전광역시
B53: 기 타
B55: 사 업 명 | C55: 2025년 업무용 다이어리 제작
B56: 계 약 개 요 | C56: 계약일자 | D56: 계약기간 | G56: 예정가격(원) | H56: 계약금액(원) | I56: 계약률(%) (B/A)
G57: (추정금액)(A) | H57: (B)
C58: 2024-11-26 | D58: 2024-11-26 | E58: ~ | F58: 2024-12-20 | G58: 5070000 | H58: 5070000 | I58: 1
B59: 계약상대자 | C59: 업 체 명 | D59: 대표자 | G59: 주 소
C60: ㈜두루행복한세상(세종지사) | D60: 이** | G60: 세종특별자치시 갈매로 353
B61: 수의계약사유 | C61: 지방계약법 시행령 제25조제1항제5호나목 및 동령 제30조제1항제2호
B62: 납 품 장 소 | C62: 대전광역시
B63: 기 타
B65: 사 업 명 | C65: 2024 보라미 복지사각지대 발굴 물품 제작
B66: 계 약 개 요 | C66: 계약일자 | D66: 계약기간 | G66: 예정가격(원) | H66: 계약금액(원) | I66: 계약률(%) (B/A)
G67: (추정금액)(A) | H67: (B)
C68: 2024-11-29 | D68: 2024-11-29 | E68: ~ | F68: 2024-12-16 | G68: 8000000 | H68: 8000000 | I68: 1
B69: 계약상대자 | C69: 업 체 명 | D69: 대표자 | G69: 주 소
C70: 주식회사 아이티비 | D70: 이** | G70: 대전광역시 대덕구 대전로1076번길 36
B71: 수의계약사유 | C71: 지방계약법 시행령 제25조제1항제5호나목 및 동령 제30조제1항제2호
B72: 납 품 장 소 | C72: 대전광역시
B73: 기 타
B75: □ 용역
B76: 사 업 명 | C76: 2024년 대전시 지역사회보장협의체 홍보 영상 제작
B77: 계 약 개 요 | C77: 계약일자 | D77: 계약기간 | G77: 예정가격(원) | H77: 계약금액(원) | I77: 계약률(%) (B/A)
G78: (추정금액)(A) | H78: (B)
C79: 2024-11-11 | D79: 2024-11-11 | E79: ~ | F79: 2024-11-29 | G79: 4400000 | H79: 4400000 | I79: 1
B80: 계약상대자 | C80: 업 체 명 | D80: 대표자 | G80: 주 소
C81: 숙.오늘(sook.today) | D81: 고* | G81: 대전광역시 동구 대학로 62-29
B82: 수의계약사유 | C82: 지방계약법 시행령 제25조제1항제5호나목 및 동령 제30조제1항제2호
B83: 납 품 장 소 | C83: 대전광역시
B84: 기 타
B86: 사 업 명 | C86: 사회서비스원과 소속시설이 함께 나누는 즐거움 「2024 함께가는 행복동행 힐링축제」 행사 용역
B87: 계 약 개 요 | C87: 계약일자 | D87: 계약기간 | G87: 예정가격(원) | H87: 계약금액(원) | I87: 계약률(%) (B/A)
G88: (추정금액)(A) | H88: (B)
C89: 2024-11-13 | D89: 2024-11-13 | E89: ~ | F89: 2024-11-29 | G89: 20000000 | H89: 20000000 | I89: 1
B90: 계약상대자 | C90: 업 체 명 | D90: 대표자 | G90: 주 소
C91: ㈜제이비플러스 | D91: 김** | G91: 대전광역시 중구 계룡로 832
B92: 수의계약사유 | C92: 지방계약법 시행령 제25조제1항제5호나목 및 동령 제30조제1항제2호
B93: 납 품 장 소 | C93: 대전광역시
B94: 기 타
B96: 사 업 명 | C96: 중장기 경영전략과 연계한 중장기 재정계획 수립 용역 변경 계약
B97: 계 약 개 요 | C97: 변경 계약일자(당초) | D97: 변경 계약기간(기존) | G97: 예정가격(원) | H97: 계약금액(원) | I97: 계약률(%) (B/A)
G98: (추정금액)(A) | H98: (B)
C99: 2024-11-15 (2024-09-23) | D99: 2024-09-23 | E99: ~ | F99: 2024-12-21 | G99: 0 | H99: 0 | I99: 0
D100: (2024-09-23 | E100: ~ | F100: 2024-11-21)
B101: 계약상대자 | C101: 업 체 명 | D101: 대표자 | G101: 주 소
C102: 솔모아컨설팅 주식회사 | D102: 류**
B103: 수의계약사유 | C103: 지방계약법 시행령 제25조제1항제5호나목 및 동령 제30조제1항제2호
B104: 납 품 장 소 | C104: 대전광역시
B105: 기 타 | C105: 변경계약(과업기간 연장)
B107: 사 업 명 | C107: 비전 2030 중장기 경영전략 및 성과지표 고도화 용역 변경 계약
B108: 계 약 개 요 | C108: 변경 계약일자(당초) | D108: 변경 계약기간(기존) | G108: 예정가격(원) | H108: 계약금액(원) | I108: 계약률(%) (B/A)
G109: (추정금액)(A) | H109: (B)
C110: 2024-11-15 (2024-09-23) | D110: 2024-09-23 | E110: ~ | F110: 2024-12-21 | G110: 0 | H110: 0 | I110: 0
D111: (2024-09-23 | E111: ~ | F111: 2024-11-21)
B112: 계약상대자 | C112: 업 체 명 | D112: 대표자 | G112: 주 소
C113: 한국평가연구원 | D113: 류** | G113: 경상북도 김천시 혁신2로 76
B114: 수의계약사유 | C114: 지방계약법 시행령 제25조제1항제5호나목 및 동령 제30조제1항제2호
B115: 납 품 장 소 | C115: 대전광역시
B116: 기 타 | C116: 변경계약(과업기간 연장)
B118: 사 업 명 | C118: 2024 사회서비스원 소식지 제작 용역
B119: 계 약 개 요 | C119: 계약일자 | D119: 계약기간 | G119: 예정가격(원) | H119: 계약금액(원) | I119: 계약률(%) (B/A)
G120: (추정금액)(A) | H120: (B)
C121: 2024-11-20 | D121: 2024-11-20 | E121: ~ | F121: 2024-12-15 | G121: 11000000 | H121: 11000000 | I121: 1
B122: 계약상대자 | C122: 업 체 명 | D122: 대표자 | G122: 주 소
C123: 갓피플 | D123: 김** | G123: 대전시 동구 대전로 867번길 46
B124: 수의계약사유 | C124: 지방계약법 시행령 제25조제1항제5호나목 및 동령 제30조제1항제2호
B125: 납 품 장 소 | C125: 대전광역시
B126: 기 타 | C126: 여성기업
B129: 대전광역시사회서비스원 계약 현황(2024년 12월)
B131: □ 유형별 계약 현황 | I131: (단위 : 원)
B132: 유 형 | D132: 건 수 | G132: 금 액 | H132: 금액 비중 | I132: 비고
B133: 물 품 | D133: 2 | G133: =SUM(H142,H152) -> 29000000 | H133: =G133/G136 -> 0.1261526656
B134: 용 역 | D134: 16 | G134: =SUM(H163,H173,H183,H193,H203,H213,H223,H233,H243,H253,H263,H283,H293,H303,H313) -> 192620200 | H134: =G134/G136 -> 0.8379155752
B135: 공 사 | D135: 2 | G135: =SUM(H324,H334) -> 8260000 | H135: =G135/G136 -> 0.03593175924
B136: 합 계 | D136: =SUM(D133:F135) -> 20 | G136: =SUM(G133:G135) -> 229880200 | H136: =SUM(H133:H135) -> 1
B138: □ 물품
B139: 사 업 명 | C139: 노인 인지력 향상 프로그램 인지훈련 교구 구매
B140: 계 약 개 요 | C140: 계약일자 | D140: 계약기간 | G140: 예정가격(원) | H140: 계약금액(원) | I140: 계약률(%) (B/A)
G141: (추정금액)(A) | H141: (B)
C142: 2024-12-04 | D142: 2024-12-04 | E142: ~ | F142: 2024-12-11 | G142: 24000000 | H142: 24000000 | I142: 1
B143: 계약상대자 | C143: 업 체 명 | D143: 대표자 | G143: 주 소
C144: 더아름지기 주식회사 | D144: 홍** | G144: 서울특별시 강서구 양천로 551-15
B145: 수의계약사유 | C145: 지방계약법 시행령 제25조제1항제5호마목 및 동령 제30조제1항제2호
B146: 납 품 장 소 | C146: 대전광역시
B147: 기 타 | C147: 여성기업
B149: 사 업 명 | C149: 2024년 소속시설 우수성과 사례집 제작
B150: 계 약 개 요 | C150: 계약일자 | D150: 계약기간 | G150: 예정가격(원) | H150: 계약금액(원) | I150: 계약률(%) (B/A)
G151: (추정금액)(A) | H151: (B)
C152: 2024-12-06 | D152: 2024-12-06 | E152: ~ | F152: 2024-12-20 | G152: 5000000 | H152: 5000000 | I152: 1
B153: 계약상대자 | C153: 업 체 명 | D153: 대표자 | G153: 주 소
C154: 갓피플 | D154: 김** | G154: 대전광역시 동구 대전로 867번길 46
B155: 수의계약사유 | C155: 지방계약법 시행령 제25조제1항제5호나목 및 동령 제30조제1항제2호
B156: 납 품 장 소 | C156: 대전광역시
B157: 기 타 | C157: 여성기업
B159: □ 용역
B160: 사 업 명 | C160: 2024년 노인의료돌봄통합지원 시범사업 및 지역사회통합돌봄 컨퍼런스 용역 계약 체결
B161: 계 약 개 요 | C161: 계약일자 | D161: 계약기간 | G161: 예정가격(원) | H161: 계약금액(원) | I161: 계약률(%) (B/A)
G162: (추정금액)(A) | H162: (B)
C163: 2024-12-02 | D163: 2024-12-02 | E163: ~ | F163: 2024-12-15 | G163: 39000000 | H163: 39000000 | I163: 1
B164: 계약상대자 | C164: 업 체 명 | D164: 대표자 | G164: 주 소
C165: 주식회사 에스알컴퍼니 | D165: 주** | G165: 대전광역시 중구 보문로 241-1
B166: 수의계약사유 | C166: 지방계약법 시행령 제25조제1항제5호마목 및 동령 제30조제1항제2호
B167: 납 품 장 소 | C167: 대전광역시
B168: 기 타 | C168: 여성기업
B170: 사 업 명 | C170: 2024년 11차 직원 채용 필기시험 대행
B171: 계 약 개 요 | C171: 계약일자 | D171: 계약기간 | G171: 예정가격(원) | H171: 계약금액(원) | I171: 계약률(%) (B/A)
G172: (추정금액)(A) | H172: (B)
C173: 2024-12-04 | D173: 2024-12-04 | E173: ~ | F173: 2024-12-26 | G173: 6490000 | H173: 6490000 | I173: 1
B174: 계약상대자 | C174: 업 체 명 | D174: 대표자 | G174: 주 소
C175: 인크루트 주식회사 | D175: 서** | G175: 서울특별시 중구 중림로 49
B176: 수의계약사유 | C176: 지방계약법 시행령 제25조제1항제5호나목 및 동령 제30조제1항제2호
B177: 납 품 장 소 | C177: 대전광역시
B178: 기 타
B180: 사 업 명 | C180: 「2024 대전을 바꾸는 시간」 행사 용역
B181: 계 약 개 요 | C181: 계약일자 | D181: 계약기간 | G181: 예정가격(원) | H181: 계약금액(원) | I181: 계약률(%) (B/A)
G182: (추정금액)(A) | H182: (B)
C183: 2024-12-04 | D183: 2024-12-04 | E183: ~ | F183: 2024-12-15 | G183: 9000000 | H183: 9000000 | I183: 1
B184: 계약상대자 | C184: 업 체 명 | D184: 대표자 | G184: 주 소
C185: 협동조합 소셜스토리미디어 | D185: 김** | G185: 대전광역시 서구 만념남로3번길 123
B186: 수의계약사유 | C186: 지방계약법 시행령 제25조제1항제5호나목 및 동령 제30조제1항제2호
B187: 납 품 장 소 | C187: 대전광역시
B188: 기 타
B190: 사 업 명 | C190: 사회서비스원이랑 함께 떠나는 특별한 여행 -사랑행- 사업
B191: 계 약 개 요 | C191: 계약일자 | D191: 계약기간 | G191: 예정가격(원) | H191: 계약금액(원) | I191: 계약률(%) (B/A)
G192: (추정금액)(A) | H192: (B)
C193: 2024-12-04 | D193: 2024-12-04 | E193: ~ | F193: 2024-12-13 | G193: 11200000 | H193: 11200000 | I193: 1
B194: 계약상대자 | C194: 업 체 명 | D194: 대표자 | G194: 주 소
C195: 수덕관광㈜ | D195: 김** | G195: 대전광역시 동구 중앙로 189-1
B196: 수의계약사유 | C196: 지방계약법 시행령 제25조제1항제5호나목 및 동령 제30조제1항제2호
B197: 납 품 장 소 | C197: 대전광역시
B198: 기 타
B200: 사 업 명 | C200: 2025년 채용 플랫폼 임대 사용 계약 체결
B201: 계 약 개 요 | C201: 계약일자 | D201: 계약기간 | G201: 예정가격(원) | H201: 계약금액(원) | I201: 계약률(%) (B/A)
G202: (추정금액)(A) | H202: (B)
C203: 2024-12-06 | D203: 2025-01-01 | E203: ~ | F203: 2025-12-31 | G203: 6600000 | H203: 6600000 | I203: 1
B204: 계약상대자 | C204: 업 체 명 | D204: 대표자 | G204: 주 소
C205: 주식회사 휴스테이션 | D205: 박** | G205: 서울특별시 마포구 마포대로 86
B206: 수의계약사유 | C206: 지방계약법 시행령 제25조제1항제5호나목 및 동령 제30조제1항제2호
B207: 납 품 장 소 | C207: 대전광역시
B208: 기 타
B210: 사 업 명 | C210: 2025년 사무용 프린터 임차 및 유지보수
B211: 계 약 개 요 | C211: 계약일자 | D211: 계약기간 | G211: 예정가격(원) | H211: 계약금액(원) | I211: 계약률(%) (B/A)
G212: (추정금액)(A) | H212: (B)
C213: 2024-12-18 | D213: 2025-01-01 | E213: ~ | F213: 2025-12-31 | G213: 16302000 | H213: 16302000 | I213: 1
B214: 계약상대자 | C214: 업 체 명 | D214: 대표자 | G214: 주 소
C215: 퍼스트 O.A | D215: 최** | G215: 대전광역시 서구 도솔로 257
B216: 수의계약사유 | C216: 지방계약법 시행령 제25조제1항제5호나목 및 동령 제30조제1항제2호
B217: 납 품 장 소 | C217: 대전광역시
B218: 기 타 | C218: 여성기업
B220: 사 업 명 | C220: 2025년 업무지원시스템 통합 유지보수 사업
B221: 계 약 개 요 | C221: 계약일자 | D221: 계약기간 | G221: 예정가격(원) | H221: 계약금액(원) | I221: 계약률(%) (B/A)
G222: (추정금액)(A) | H222: (B)
C223: 2024-12-18 | D223: 2025-01-01 | E223: ~ | F223: 2025-12-31 | G223: 43461000 | H223: 43461000 | I223: 1
B224: 계약상대자 | C224: 업 체 명 | D224: 대표자 | G224: 주 소
C225: ㈜엔엔소프트 | D225: 박** | G225: 충청남도 계룡시 장안로 39, 303호
B226: 수의계약사유 | C226: 지방계약법 시행령 제25조제1항제5호마목 및 동령 제30조제1항제2호
B227: 납 품 장 소 | C227: 대전광역시
B228: 기 타 | C228: 장애인기업
... 100 more rows
